bitfinex/quotes_ETHUSD_20240731
["timestamp","ask_amount","ask_price","bid_price","bid_amount"]
[1722448742821,3.01136,3320.8,3317.7,35.0]
[1722448742822,3.01279,3319.2,3318.2,3.01364]
[1722448742987,3.01279,3319.2,3318.3,0.06026738]
[1722448743171,3.01259,3319.4,3318.2,3.01364]
[1722448743372,3.01274,3319.3,3318.3,0.06026392]
[1722448743566,3.01274,3319.3,3318.2,3.01364]
[1722448743567,0.602533,3319.2,3318.2,3.01364]
[1722448743804,3.01286,3319.1,3318.0,3.01385]
[1722448743966,3.01286,3319.1,3317.8,3.01404]
[1722448744171,3.01286,3319.1,3317.9,0.55]
[1722448744410,3.0,3319.7,3317.7,35.0]
[1722448744666,3.01205,3320.0,3317.7,35.0]
[1722448744667,3.01334,3318.6,3317.7,35.0]
[1722448744901,0.602662,3318.5,3317.7,35.0]
[1722448745109,3.01328,3318.7,3317.7,35.0]
[1722448745713,3.01341,3318.5,3317.7,35.0]
[1722448745867,3.0,3319.3,3317.7,35.0]
[1722448746066,3.01369,3318.2,3317.7,35.0]
[1722448746283,3.01412,3317.8,3316.7,3.015]
[1722448746480,3.01412,3317.8,3316.8,3.01495]
[1722448746682,3.01412,3317.8,3316.9,0.06028684]
[1722448746972,3.01377,3318.1,3317.0,35.0]
[1722448747169,3.01377,3318.1,3317.1,0.06028175]
[1722448747407,3.01385,3318.1,3317.0,3.01473]
[1722448747715,3.01385,3318.1,3315.7,3.16291733]
[1722448747716,3.01399,3317.9,3316.9,3.01483]
[1722448747884,3.01399,3317.9,3317.1,35.06027923]
[1722448748269,3.01417,3317.7,3317.1,35.0]
[1722448748571,0.301369,3318.2,3317.1,35.0]
[1722448748863,3.0,3318.8,3317.2,0.06028468]
[1722448749253,3.01386,3318.1,3317.2,0.06028468]
[1722448749553,3.0141,3317.8,3315.2,4.51639]
[1722448749716,3.01432,3317.5,3316.3,3.01537]
[1722448749920,3.01448,3317.4,3316.0,3.01562]
[1722448750149,3.01448,3317.4,3316.1,35.0]
[1722448750351,3.01472,3317.1,3316.1,35.0]
[1722448750530,0.301432,3317.5,3315.7,3.01587]
[1722448750531,3.01512,3316.7,3315.7,3.01587]
[1722448750754,3.01471,3317.1,3315.7,3.01593]
[1722448750964,3.01471,3317.1,3315.4,0.3127639]
[1722448750965,0.602938,3317.0,3316.1,3.0155]
[1722448751175,3.01487,3316.9,3315.9,3.01574]
[1722448751516,3.01487,3316.9,3315.8,35.301593]
[1722448751517,3.01487,3316.9,3316.0,0.05643304]
[1722448751717,3.617708,3317.0,3316.0,3.13237795]
[1722448751921,3.617708,3317.0,3316.0,3.07594491]
[1722448752121,0.602938,3317.0,3316.2,3.01547]
[1722448752362,3.0147,3317.1,3316.3,0.06030054]
[1722448752566,3.01469,3317.1,3315.9,3.01577]
[1722448752872,1.50162936,3320.8,3315.8,35.301593]
[1722448752873,3.01282,3319.2,3316.6,3.01513]
[1722448753036,0.3021,3321.4,3316.7,0.55]
[1722448753037,3.01294,3319.1,3316.7,0.55]
[1722448753242,3.01294,3319.1,3316.0,3.04937891]
[1722448753243,3.01442,3317.4,3316.8,35.0]
[1722448753765,3.01423,3317.6,3316.8,35.0]
[1722448754075,3.315653,3317.6,3316.8,35.0]
[1722448754364,0.301423,3317.6,3316.8,35.0]
[1722448754534,3.01469,3317.1,3316.1,3.01555]
[1722448754735,3.01411,3317.8,3316.0,3.0]
[1722448754736,3.0145,3317.3,3316.2,3.56547]
[1722448755068,3.01441,3317.4,3316.5,3.01522]
[1722448755364,3.01451,3317.3,3316.6,0.06029536]
[1722448755565,3.0139,3318.0,3316.9,3.01486]
[1722448755774,3.01408,3317.8,3317.0,0.06028618]
[1722448756135,3.01408,3317.8,3317.1,35.0]
[1722448756540,0.30139,3317.9,3317.1,35.0]
[1722448756848,0.30139,3317.9,3317.2,0.06028619]
[1722448757055,3.01379,3318.1,3317.2,3.07484619]
[1722448757440,3.01423,3317.6,3317.1,35.0]
[1722448757637,3.0,3318.5,3317.1,35.0]
[1722448757638,3.01373,3318.2,3317.1,35.0]
[1722448757871,3.0143,3317.6,3317.1,35.0]
[1722448758171,3.01363,3318.3,3317.1,35.0]
[1722448758338,3.0141,3317.8,3317.1,35.0]
[1722448758675,3.01396,3317.9,3317.1,35.0]
[1722448759656,3.01387,3318.0,3317.1,38.01468]
[1722448759841,3.01387,3318.0,3317.2,0.06028795]
[1722448760184,0.301363,3318.2,3317.1,35.0]
[1722448760323,3.01407,3317.8,3317.2,0.06028905]
[1722448760522,3.01396,3317.9,3317.1,35.0]
[1722448761858,6.028,3317.9,3317.1,35.0]
[1722448762074,3.01396,3317.9,3317.1,35.0]
[1722448762582,3.01377,3318.1,3317.2,0.06028581]
[1722448762727,3.01377,3318.2,3317.2,0.06028581]
[1722448763382,3.0142,3317.7,3317.1,35.0]
[1722448763581,3.01439,3317.5,3316.4,3.01528]
[1722448763733,3.01485,3317.0,3315.9,7.29]
[1722448763939,10.47,3318.0,3315.9,10.30572]
[1722448763940,3.0145,3317.3,3315.9,10.30572]
[1722448764163,3.0,3317.9,3316.2,3.01548]
[1722448764572,3.01431,3317.5,3316.2,3.01548]
[1722448764770,3.01456,3317.3,3316.2,3.01548]
[1722448764976,0.301456,3317.2,3316.3,35.0]
[1722448765175,3.01431,3317.5,3316.3,35.0]
[1722448765560,3.01406,3317.8,3316.3,35.0]
[1722448765751,3.0,3317.7,3316.3,35.0]
[1722448766463,3.0,3317.9,3316.4,0.0602984]
[1722448767023,6.01398,3317.9,3316.3,35.0]
[1722448767272,1.348398,3317.8,3316.3,35.0]
[1722448767473,1.348398,3317.8,3316.4,0.61029512]
[1722448768787,0.3,3318.4,3316.5,0.3021]
[1722448769091,3.01264,3319.4,3316.7,3.31712]
[1722448769246,3.01222,3319.9,3317.3,35.0]
[1722448769247,3.01309,3318.9,3317.3,35.0]
[1722448770061,3.01336,3318.6,3317.3,35.0]
[1722448770263,3.01314,3318.8,3317.3,35.0]
[1722448770481,3.01282,3319.2,3317.3,35.0]
[1722448770482,3.01306,3318.9,3317.3,35.0]
[1722448770689,0.301306,3318.8,3317.3,35.0]
[1722448770902,3.301306,3318.8,3317.3,35.0]
[1722448771460,3.301306,3318.8,3317.4,0.06027719]
[1722448771703,0.301306,3318.8,3317.5,0.55]
[1722448772008,3.0,3319.3,3317.6,0.06027148]
[1722448772158,3.0,3319.3,3317.7,0.55]
[1722448772364,3.01264,3319.4,3317.8,0.06026929]
[1722448772861,3.0,3319.3,3317.8,0.06026929]
[1722448773106,3.01283,3319.2,3317.9,35.0]
[1722448773310,3.01296,3319.0,3317.9,35.0]
[1722448773695,3.601283,3319.1,3317.9,35.0]
[1722448774903,3.01295,3319.0,3317.2,7.29]
[1722448775077,3.0,3318.9,3317.3,0.55]
[1722448775277,0.601295,3318.8,3317.4,35.0]
[1722448775472,0.601295,3318.8,3317.5,0.55]
[1722448775782,3.01305,3318.9,3317.5,0.55]
[1722448775987,3.0,3318.8,3317.3,0.55]
[1722448776186,3.0,3318.8,3317.4,35.0]
[1722448776493,3.0,3318.8,3317.5,0.55]
[1722448776903,3.01324,3318.7,3317.2,7.29]
[1722448777210,3.01324,3318.7,3316.9,35.0]
[1722448777211,3.01352,3318.4,3316.9,35.0]
[1722448777590,3.0,3318.3,3316.9,35.0]
[1722448778314,3.0,3318.3,3317.0,0.06028893]
[1722448778505,0.601352,3318.2,3317.0,0.06028893]
[1722448778700,3.0,3318.5,3317.0,0.06028893]
[1722448778901,3.0,3318.5,3316.9,35.0]
[1722448779108,3.0,3318.5,3317.1,0.06028036]
[1722448779324,3.0,3318.5,3316.9,35.0]
[1722448779478,3.0,3318.5,3317.0,0.06027637]
[1722448779680,1.047,3318.4,3317.1,2.22756198]
[1722448779906,1.047,3318.4,3317.2,0.06027637]
[1722448780086,1.047,3318.4,3317.3,0.61027638]
[1722448780287,0.601305,3318.7,3317.3,0.61027638]
[1722448780518,3.01297,3319.0,3317.3,0.55]
[1722448780703,3.01297,3319.0,3317.1,2.22756198]
[1722448780704,3.0,3318.9,3317.2,0.55]
[1722448780906,3.0,3318.9,3317.4,0.06027221]
[1722448781091,3.01283,3319.2,3317.5,0.55]
[1722448781293,3.0,3319.1,3317.5,0.55]
[1722448781608,0.601283,3319.0,3317.2,0.55]
[1722448782285,0.601283,3319.0,3317.3,0.06027517]
[1722448782486,3.01262,3319.4,3317.4,0.55]
[1722448782487,3.0,3319.3,3317.4,0.55]
[1722448782682,3.0,3319.3,3317.5,0.06027223]
[1722448783007,3.0,3319.3,3317.6,0.55]
[1722448783207,3.0,3319.3,3317.7,0.06027222]
[1722448783392,3.0,3319.3,3317.6,0.55]
[1722448783393,3.0,3319.3,3317.8,0.61026932]
[1722448783592,0.601262,3319.2,3317.8,0.06026932]
[1722448784181,3.01224,3319.8,3317.8,0.06026932]
[1722448784182,3.0,3319.7,3317.9,0.55]
[1722448784415,3.01241,3319.6,3317.9,0.55]
[1722448784619,3.0,3319.5,3318.0,35.06026679]
[1722448784806,3.0,3319.7,3318.0,35.06026679]
[1722448785198,3.01224,3319.8,3318.0,35.06026679]
[1722448785396,0.301224,3319.7,3318.0,35.0]
[1722448786295,3.01205,3320.0,3318.1,0.55]
[1722448786548,3.01173,3320.4,3318.1,0.55]
[1722448786685,3.01173,3320.4,3318.0,0.55]
[1722448786891,3.01173,3320.4,3318.2,35.0]
[1722448787091,3.01173,3320.4,3318.3,0.55]
[1722448787332,0.301173,3320.3,3318.3,0.55]
[1722448787930,3.301173,3320.3,3318.3,0.55]
[1722448790438,0.301173,3320.3,3318.7,3.0132]
[1722448790753,3.48374164,3321.0,3318.8,0.55]
[1722448790922,3.01144,3320.7,3318.8,0.55]
[1722448791123,3.01119,3321.0,3318.6,3.01324]
[1722448791451,3.0109,3321.3,3318.8,3.01309]
[1722448791618,3.0109,3321.3,3318.9,0.55]
[1722448791820,0.30109,3321.2,3319.1,3.01282]
[1722448792174,3.01072,3321.5,3319.2,3.55]
[1722448792322,3.48257721,3322.1,3319.0,0.356309]
[1722448792323,3.0113,3320.9,3319.0,0.356309]
[1722448792530,3.0113,3320.9,3318.4,38.01349]
[1722448792828,3.0113,3320.9,3318.6,3.0133]
[1722448793042,3.01078,3321.4,3318.5,3.55]
[1722448793043,3.01106,3321.1,3318.8,3.0131]
[1722448793376,3.0,3321.0,3319.0,3.0129]
[1722448793572,3.0,3321.3,3319.3,3.01266]
[1722448793771,0.3,3321.2,3319.4,0.301266]
[1722448793930,3.01076,3321.5,3319.5,0.55]
[1722448794131,3.01025,3322.0,3319.6,38.01239]
[1722448794326,3.01015,3322.1,3319.8,3.01218]
[1722448794770,3.01015,3322.1,3319.9,0.55]
[1722448795066,3.00993,3322.4,3320.1,3.01194]
[1722448795230,0.300993,3322.3,3320.2,2.77788898]
[1722448796231,3.00975,3322.6,3320.3,3.01173]
[1722448796429,3.00975,3322.6,3320.4,0.55]
[1722448796652,3.00999,3322.3,3320.5,35.0]
[1722448796839,3.00999,3322.3,3320.6,0.55]
[1722448797589,3.00999,3322.3,3320.7,35.0]
[1722448797759,3.300999,3322.2,3320.7,35.0]
[1722448798260,3.0,3322.1,3320.7,35.0]
[1722448798603,0.300999,3322.2,3320.7,35.0]
[1722448798908,3.0,3322.5,3320.7,35.0]
[1722448799282,3.00987,3322.4,3320.7,35.0]
[1722448799486,3.0,3322.3,3320.7,35.0]
[1722448799865,3.0,3322.5,3320.7,35.0]
[1722448800396,3.631668,3323.6,3322.2,3.00998]
[1722448800397,0.622838,3323.6,3322.2,3.00998]
[1722448800613,3.32139863,3325.9,3322.4,3.31196]
[1722448800614,3.00743,3325.1,3322.4,3.31196]
[1722448800925,3.00743,3325.1,3322.3,0.300998]
[1722448801077,3.00693,3325.7,3321.3,3.0108]
[1722448801078,3.00867,3323.8,3321.3,3.0108]
[1722448801278,3.00766,3324.9,3322.4,3.00983]
[1722448801279,3.00808,3324.4,3322.4,3.00983]
[1722448801600,3.00766,3324.9,3322.6,3.00967]
[1722448801601,0.300808,3324.3,3322.6,3.00967]
[1722448801806,3.00716,3325.4,3321.9,3.0]
[1722448801952,0.23212828,3325.6,3322.0,3.01016]
[1722448802165,0.14612446,3325.7,3321.4,3.01077]
[1722448802166,3.00845,3324.0,3321.4,3.01077]
[1722448802466,3.0079,3324.6,3321.7,3.01044]
[1722448802676,3.00852,3323.9,3321.8,3.0]
[1722448802881,3.00825,3324.2,3321.9,0.601044]
[1722448803197,3.00825,3324.2,3321.2,36.5]
[1722448803198,3.00981,3322.5,3321.6,0.36094734]
[1722448803400,3.00981,3322.5,3319.4,1.5]
[1722448803401,9.03666,3319.8,3318.0,0.05243447]
[1722448803613,9.03666,3319.8,3316.7,1.54682221]
[1722448803614,1.811,3321.9,3316.8,1.25105289]
[1722448803791,3.01394,3318.0,3317.6,0.05251802]
[1722448804104,3.01218,3319.9,3315.8,1.5]
[1722448804264,3.01218,3319.9,3315.5,1.25295143]
[1722448804265,3.01374,3318.2,3315.9,35.0]
[1722448804447,3.0145,3317.3,3316.0,2.52915498]
[1722448804644,3.315224,3318.1,3316.1,1.207649]
[1722448804889,3.01289,3319.1,3316.1,36.207649]
[1722448805113,3.0122,3319.9,3317.1,3.0146]
[1722448805262,3.0,3319.8,3318.3,3.01351]
[1722448805450,0.55,3320.9,3319.6,3.01232]
[1722448805644,3.0102,3322.1,3317.9,3.01395]
[1722448805645,3.01011,3322.2,3318.9,3.01298]
[1722448805879,3.01038,3321.9,3318.0,35.0]
[1722448806074,0.77337365,3322.4,3318.0,35.0]
[1722448806281,0.77337365,3322.4,3317.5,0.3021]
[1722448806282,3.01239,3319.7,3317.5,0.3021]
[1722448806446,3.01067,3321.6,3316.7,0.3021]
[1722448806660,3.01221,3319.9,3317.3,3.01441]
[1722448806844,3.01256,3319.5,3317.4,35.0]
[1722448807048,3.01296,3319.0,3317.4,35.0]
[1722448807278,3.01296,3319.0,3315.1,0.1449158]
[1722448807279,3.0145,3317.3,3315.1,0.1449158]
[1722448807479,0.9636526,3317.5,3315.1,0.1449158]
[1722448807685,3.01613,3315.6,3315.2,35.0]
[1722448807855,3.01459,3317.2,3315.1,0.1449158]
[1722448808066,3.01532,3316.4,3315.1,0.1449158]
[1722448808265,3.0,3317.0,3315.2,35.0]
[1722448808678,0.301459,3317.1,3315.2,35.0]
[1722448808989,3.314406,3318.9,3315.2,35.0]
[1722448808990,3.0,3317.8,3315.2,35.0]
[1722448809303,3.0,3317.8,3315.1,0.1449158]
[1722448809304,3.0,3317.7,3315.7,3.01588]
[1722448809510,3.01315,3318.8,3315.4,3.0162]
[1722448809648,3.0,3318.4,3315.5,35.30162]
[1722448809988,0.3314446,3318.7,3315.5,35.30162]
[1722448809989,0.3314446,3318.7,3316.6,3.01513]
[1722448810293,0.301296,3318.9,3317.2,3.01458]
[1722448810495,0.42220563,3320.0,3317.8,3.01397]
[1722448810652,3.01131,3320.9,3317.9,3.01395]
[1722448810653,0.42220563,3320.7,3317.9,3.01395]
[1722448811002,0.42220563,3320.7,3316.9,3.01485]
[1722448811003,3.01187,3320.2,3318.0,3.01385]
[1722448811146,3.01187,3320.2,3318.1,0.55]
[1722448811595,3.01252,3319.5,3318.2,35.0]
[1722448811761,0.77337365,3322.4,3318.3,2.22753498]
[1722448811762,3.01188,3320.2,3318.3,2.22753498]
[1722448811961,3.01287,3319.1,3318.3,2.22753498]
[1722448812191,3.01206,3320.0,3318.2,3.0]
[1722448812360,3.01206,3320.0,3317.6,3.0]
[1722448812361,3.01206,3320.0,3318.3,35.0]
[1722448812559,3.01115,3321.0,3318.3,35.0]
[1722448812560,3.01283,3319.2,3318.3,35.0]
[1722448812777,3.01284,3319.2,3318.3,35.0]
[1722448812978,3.01276,3319.3,3316.7,3.01496]
[1722448813291,3.01276,3319.3,3316.8,0.301496]
[1722448813292,3.01334,3318.6,3316.8,0.301496]
[1722448813452,3.01301,3319.0,3316.8,35.0]
[1722448813652,3.314086,3319.2,3316.8,35.0]
[1722448813996,3.0,3319.1,3316.8,35.0]
[1722448814196,0.14724798,3321.4,3318.8,3.0131]
[1722448814397,0.14724798,3321.4,3319.1,3.01279]
[1722448814398,3.01086,3321.4,3319.1,3.01279]
[1722448814610,3.01086,3321.4,3318.3,3.01351]
[1722448814611,3.01068,3321.6,3318.3,3.0135]
[1722448814612,0.301086,3321.3,3318.3,3.0135]
[1722448814810,3.01196,3320.1,3318.4,35.0]
[1722448815099,3.01123,3320.9,3316.2,7.5985458]
[1722448815100,3.01132,3320.8,3316.2,6.05]
[1722448815300,3.01204,3320.0,3316.4,3.0]
[1722448815469,3.01226,3319.8,3316.8,35.0]
[1722448815667,3.01339,3318.6,3316.9,2.22753498]
[1722448815991,3.0136,3318.3,3316.9,2.22753498]
[1722448816193,3.01332,3318.6,3316.9,2.22753498]
[1722448816394,3.01332,3318.6,3317.0,0.06027359]
[1722448816395,3.01336,3318.6,3317.0,0.06027359]
[1722448816616,3.0,3319.0,3317.1,3.01466]
[1722448816902,1.5,3322.3,3317.4,1.5]
[1722448816903,3.01136,3320.8,3317.4,1.5]
[1722448817220,3.01136,3320.8,3318.3,3.01357]
[1722448817398,3.01187,3320.2,3318.0,3.01379]
[1722448817553,3.01165,3320.5,3318.1,3.55]
[1722448817760,3.01165,3320.5,3318.2,3.01368]
[1722448817963,3.01142,3320.7,3318.1,3.55]
[1722448817964,3.01178,3320.3,3318.3,4.206368]
[1722448818297,3.01178,3320.3,3317.7,35.0]
[1722448818298,3.01223,3319.8,3317.7,35.0]
[1722448818467,0.301165,3320.4,3317.8,3.55]
[1722448818468,3.01195,3320.2,3317.8,3.55]
[1722448818668,3.0,3320.1,3318.4,3.01343]
[1722448818874,0.301165,3320.4,3318.5,3.6102504]
[1722448819183,3.01142,3320.7,3318.6,3.01329]
[1722448819498,3.01096,3321.2,3318.8,3.0131]
[1722448819715,3.01096,3321.2,3318.9,0.06024495]
[1722448819908,3.01096,3321.2,3319.1,3.01285]
[1722448820071,3.01096,3321.2,3319.2,0.06024494]
[1722448820274,3.01135,3320.8,3319.3,35.0]
[1722448820572,3.0,3320.7,3317.3,0.35458781]
[1722448820753,3.01213,3320.0,3318.9,3.01296]
[1722448820966,3.01213,3320.0,3317.9,0.3021]
[1722448820967,3.01166,3320.5,3319.0,0.301296]
[1722448821172,3.01216,3319.9,3318.5,3.01339]
[1722448821419,3.01216,3319.9,3318.3,3.0]
[1722448821420,3.01195,3320.2,3318.0,35.0]
[1722448821584,3.01195,3320.2,3317.8,3.01401]
[1722448821585,3.01314,3318.8,3317.2,0.30162]
[1722448821987,3.55,3320.1,3317.6,3.01416]
[1722448821988,3.0,3319.4,3317.6,3.01416]
[1722448822234,3.01279,3319.2,3316.6,35.0]
[1722448822372,3.0,3319.3,3316.6,36.5]
[1722448822574,2.112086,3321.3,3316.1,3.01]
[1722448822575,3.01152,3320.6,3319.2,3.01275]
[1722448822819,0.301086,3321.3,3319.2,3.01275]
[1722448823001,3.01167,3320.5,3319.1,0.06024877]
[1722448823316,3.01174,3320.4,3319.1,3.01284]
[1722448823506,3.01149,3320.7,3319.2,3.07300878]
[1722448823673,0.301086,3321.3,3319.8,3.01222]
[1722448823674,3.01132,3320.8,3319.8,3.01222]
[1722448823902,3.01112,3321.1,3319.5,3.01249]
[1722448824215,3.01112,3321.1,3319.1,3.0]
[1722448824216,0.301112,3321.0,3320.0,3.01196]
[1722448824435,3.01003,3322.3,3320.0,3.01204]
[1722448824608,3.01051,3321.7,3320.5,3.01158]
[1722448824822,0.300981,3322.4,3320.6,3.07172341]
[1722448825133,0.300981,3322.4,3320.7,0.61022345]
[1722448825277,3.00833,3324.1,3320.7,0.61022345]
[1722448825278,3.00942,3322.9,3321.6,3.01058]
[1722448825477,3.00833,3324.1,3320.7,0.55]
[1722448825478,3.00952,3322.8,3321.0,3.01112]
[1722448825685,3.00966,3322.7,3321.5,3.01068]
[1722448826009,3.00874,3323.7,3321.6,3.07078966]
[1722448826314,3.00962,3322.7,3321.6,3.01051]
[1722448826530,3.00702,3325.6,3322.5,3.00974]
[1722448826735,3.00702,3325.6,3320.9,6.01114]
[1722448826736,3.00814,3324.4,3322.6,3.0]
[1722448826874,3.00754,3325.0,3322.6,3.0]
[1722448826875,3.00885,3323.6,3322.6,3.0]
[1722448827071,3.00827,3324.2,3322.9,3.00941]
[1722448827310,0.300827,3324.1,3322.7,35.0]
[1722448827513,3.00664,3326.0,3322.7,35.06018666]
[1722448827742,1.20594,3326.1,3322.8,3.06017736]
[1722448827743,3.00788,3324.6,3322.8,3.06017736]
[1722448827960,3.0077,3324.8,3323.6,3.00874]
[1722448828112,3.00733,3325.3,3324.1,3.00832]
[1722448828312,3.14885779,3326.6,3324.2,3.06836146]
[1722448828313,3.00716,3325.4,3324.2,3.06836146]
[1722448828607,3.14885779,3326.6,3324.3,0.06015778]
[1722448828608,0.601426,3325.3,3324.3,0.06015778]
[1722448828775,3.00729,3325.3,3323.5,3.06897583]
[1722448828913,0.14885779,3326.6,3322.5,3.00969]
[1722448829120,3.00857,3323.9,3322.7,3.00958]
[1722448829348,3.00729,3325.3,3322.8,6.5595]
[1722448829535,6.0,3327.1,3322.0,3.01019]
[1722448829536,3.00897,3323.4,3322.0,3.01019]
[1722448829724,0.300897,3323.3,3322.6,3.00963]
[1722448829930,3.00833,3324.1,3322.0,1.5]
[1722448830167,3.00825,3324.2,3323.2,3.00914]
[1722448830326,3.00599,3326.7,3322.7,35.0]
[1722448830327,0.375,3327.2,3323.7,3.00862]
[1722448830528,3.00769,3324.9,3323.8,3.00857]
[1722448830831,0.52820659,3327.2,3325.0,3.00746]
[1722448831045,0.52820659,3327.2,3323.9,0.06015664]
[1722448831262,0.52820659,3327.2,3324.0,0.85686766]
[1722448831263,3.0062,3326.5,3324.0,0.85686766]
[1722448831475,0.375,3327.2,3324.2,3.00821]
[1722448831794,0.375,3327.2,3324.5,3.00793]
[1722448831795,3.00679,3325.8,3324.5,3.00793]
[1722448831945,0.375,3327.2,3324.5,3.00797]
[1722448832147,3.007,3325.6,3324.7,3.00778]
[1722448832465,3.0063,3326.4,3324.8,0.06015128]
[1722448832674,3.0063,3326.4,3324.6,0.300797]
[1722448832675,3.00756,3325.0,3322.8,1.5]
[1722448832857,3.00741,3325.2,3323.3,35.0]
[1722448833187,3.00726,3325.3,3322.7,3.00959]
[1722448833391,3.00817,3324.3,3323.0,3.0093]
[1722448833548,0.300726,3325.2,3322.8,3.310459]
[1722448833549,3.00798,3324.5,3323.1,0.06017412]
[1722448833892,3.00689,3325.7,3323.1,0.06017412]
[1722448834026,3.00689,3325.7,3322.2,3.01]
[1722448834027,3.00677,3325.9,3322.2,3.01]
[1722448834229,3.00737,3325.2,3324.2,3.00821]
[1722448834476,1.205441,3327.8,3325.3,3.00723]
[1722448834477,3.00625,3326.5,3325.3,3.00723]
[1722448834649,3.00695,3325.7,3324.7,3.00771]
[1722448834844,3.00646,3326.2,3324.3,35.0]
[1722448835049,0.300625,3326.4,3324.3,35.0]
[1722448835250,3.00759,3325.0,3322.2,3.01]
[1722448835556,0.300625,3326.4,3323.0,3.00926]
[1722448835765,3.00802,3324.5,3323.1,35.300926]
[1722448835928,3.00716,3325.4,3323.1,35.300926]
[1722448836138,3.00833,3324.2,3323.1,0.300926]
[1722448836337,3.55,3325.3,3322.3,3.00994]
[1722448836338,6.00789,3324.6,3322.3,3.00994]
[1722448836532,6.00789,3324.6,3320.2,1.5]
[1722448836533,3.00924,3323.1,3320.2,1.5]
[1722448836747,3.00924,3323.1,3319.9,0.93110574]
[1722448836748,3.00924,3323.1,3322.1,3.01013]
[1722448836948,3.0,3324.1,3321.3,0.3021]
[1722448837177,3.55,3324.5,3321.3,3.31294]
[1722448837178,3.01003,3322.3,3321.3,3.31294]
[1722448837373,3.0096,3322.7,3321.5,3.01068]
[1722448837566,3.00932,3323.1,3321.6,0.06020461]
[1722448837872,3.00932,3323.1,3321.5,3.01061]
[1722448837873,3.00951,3322.8,3321.5,3.01061]
[1722448838080,3.00951,3322.8,3321.6,3.07079421]
[1722448838398,3.00951,3322.8,3321.3,0.331294]
[1722448838399,6.0092,3323.2,3321.5,3.01066]
[1722448838593,3.00992,3322.4,3321.6,0.602143]
[1722448838746,3.00998,3322.3,3321.1,35.0]
[1722448838938,0.60092,3323.1,3320.4,3.01163]
[1722448838939,3.0095,3322.9,3320.4,3.01163]
[1722448839171,0.60092,3323.1,3320.4,3.01163]
[1722448839172,3.01035,3321.9,3320.6,3.01141]
[1722448839485,3.01002,3322.3,3319.9,3.01211]
[1722448839486,3.0107,3321.5,3320.5,38.01157]
[1722448839785,3.0,3322.4,3320.7,3.01134]
[1722448839955,3.0097,3322.6,3319.9,3.01213]
[1722448840161,0.55,3323.0,3319.6,0.301249]
[1722448840162,3.0116,3320.5,3319.6,0.301249]
[1722448840481,0.55,3323.0,3319.6,3.01237]
[1722448840482,3.01153,3320.6,3319.6,3.01237]
[1722448840685,3.01153,3320.6,3317.2,0.14873622]
[1722448840686,1.811,3321.6,3319.0,0.31177633]
[1722448840887,3.01241,3319.6,3317.9,1.206973]
[1722448841083,3.01179,3320.3,3318.3,0.3021]
[1722448841305,0.55,3321.5,3319.7,3.01227]
[1722448841445,3.0,3321.9,3319.2,3.01276]
[1722448841446,0.55,3321.8,3319.2,3.01276]
[1722448841642,0.355,3321.7,3319.4,3.01252]
[1722448841839,0.55,3321.8,3319.5,0.06023794]
[1722448842142,3.01089,3321.3,3319.8,3.01217]
[1722448842347,0.55,3321.8,3319.5,3.01242]
[1722448842348,3.0,3321.7,3319.5,3.01242]
[1722448842546,3.01248,3319.6,3318.2,0.31155949]
[1722448842858,1.811,3321.3,3318.4,3.01348]
[1722448843184,1.811,3321.3,3315.9,0.15240373]
[1722448843185,3.01194,3320.2,3319.0,3.01291]
[1722448843371,0.7311,3321.2,3318.9,0.06025309]
[1722448843576,0.55,3321.2,3318.6,0.06025928]
[1722448843881,3.00987,3322.4,3318.6,0.06025928]
[1722448843882,3.00988,3322.4,3319.3,3.0126]
[1722448844087,3.01017,3322.1,3319.5,3.01249]
[1722448844289,3.01199,3320.1,3318.9,3.01303]
[1722448844503,3.01278,3319.2,3318.5,35.0]
[1722448844711,3.01278,3319.2,3318.1,3.01376]
[1722448844712,3.01284,3319.2,3318.1,3.01376]
[1722448844854,3.01205,3320.0,3317.0,1.5]
[1722448845050,3.01203,3320.1,3319.0,3.01288]
[1722448845282,3.01221,3319.9,3318.8,3.01312]
[1722448845503,0.301221,3319.9,3318.2,35.0]
[1722448845651,3.0,3320.8,3316.7,3.04]
[1722448845652,3.01357,3318.4,3316.7,3.04]
[1722448845851,3.01357,3318.4,3317.3,3.01448]
[1722448846094,3.01357,3318.4,3315.9,0.15240373]
[1722448846095,3.01266,3319.4,3317.4,35.0]
[1722448846251,3.0132,3318.8,3317.4,35.0]
[1722448846457,3.01277,3319.2,3317.1,3.01464]
[1722448846458,3.01376,3318.2,3317.1,3.01468]
[1722448846654,3.0,3319.3,3317.2,0.301468]
[1722448846851,3.01219,3319.9,3317.0,0.3021]
[1722448847081,3.01361,3318.3,3317.3,3.01446]
[1722448847266,3.55,3319.8,3317.1,35.0]
[1722448847267,3.01332,3318.6,3317.1,35.0]
[1722448847471,3.55,3319.8,3316.8,0.31126147]
[1722448847669,3.01412,3317.8,3316.7,3.01503]
[1722448847867,3.01304,3318.9,3315.9,0.05252834]
[1722448847868,3.01304,3318.9,3316.8,35.301503]
[1722448848068,3.01304,3318.9,3315.3,0.14836211]
[1722448848069,3.0147,3317.1,3316.2,3.01545]